[Event "Maria Albulet Memorial 2017"]
[Site "Braila"]
[Date "2017.10.07"]
[Round "1"]
[White "Babiy, Olga"]
[Black "Didiliuc, Dariana-Gabriela"]
[Result "0-1"]
[ECO "B33"]
[WhiteElo "2317"]
[BlackElo "1779"]
[Annotator "ChessBase"]
[PlyCount "56"]
[EventDate "2017.??.??"]
[EventCountry "ROU"]
[SourceTitle "playchess.com"]
[Source "ChessBase"]
[SourceQuality "1"]
[TimeControl "40/5400+30:900+30"]

1. e4 {[%emt 0:00:00]} c5 {[%emt 0:00:05]} 2. Nf3 {[%emt 0:00:00]} Nc6 {[%emt 0:00:12]} 3. d4 {[%emt 0:00:00]} cxd4 {[%emt 0:00:11]} 4. Nxd4 {[%emt 0:00:00]} Nf6 {[%emt 0:00:15]} 5. Nc3 {[%emt 0:00:00]} e5 {[%emt 0:00:21]} 6. Ndb5 {[%emt 0:00:03]} d6 {[%emt 0:00:23]} 7. Bg5 {[%emt 0:00:10]} a6 {[%emt 0:00:20]} 8. Na3 {[%emt 0:00:06]} b5 {[%emt 0:00:15]} 9. Nd5 {[%emt 0:00:12]} Be7 {[%emt 0:00:36]} 10. Bxf6 {[%emt 0:00:10]} Bxf6 {[%emt 0:00:12]} 11. c3 {[%emt 0:00:09]} Ne7 {[%emt 0:00:31]} 12. Nxf6+ {[%emt 0:00:44]} gxf6 {[%emt 0:00:16]} 13. Be2 {[%emt 0:00:11]} Bb7 {[%emt 0:01:53]} 14. Bf3 {[%emt 0:00:08]} d5 {[%emt 0:03:29]} 15. exd5 {[%emt 0:00:26]} Bxd5 {[%emt 0:00:41]} 16. Nc2 {[%emt 0:00:20]} Qd6 {[%emt 0:25:25]} 17. Ne3 {[%emt 0:09:08]} Rd8 {[%emt 0:04:43]} 18. Nxd5 {[%emt 0:02:39]} Nxd5 {[%emt 0:00:18]} 19. Qc2 {[%emt 0:00:28]} Qe6 {[%emt 0:02:51]} 20. O-O-O {[%emt 0:06:52]} O-O {[%emt 0:05:58]} 21. Kb1 {[%emt 0:03:17]} f5 {[%emt 0:17:01]} 22. g4 {[%emt 0:02:36]} fxg4 {[%emt 0:06:43]} 23. Bxg4 {[%emt 0:00:36]} f5 {[%emt 0:00:59]} 24. Bh3 {[%emt 0:00:49]} e4 {[%emt 0:01:04]} 25. Rhg1+ {[%emt 0:01:04]} Kh8 {[%emt 0:00:25]} 26. Qd2 {[%emt 0:03:52]} Nb4 {[%emt 0:06:27]} 27. cxb4 {[%emt 0:13:11]} Rxd2 {[%emt 0:00:30]} 28. Rxd2 {[%emt 0:00:05]} Qh6 {[%emt 0:00:28]} 0-1

[Event "Maria Albulet Memorial 2017"]
[Site "Braila"]
[Date "2017.10.07"]
[Round "1"]
[White "Djukic, Sandra"]
[Black "Coman, Ana-Cristina"]
[Result "1-0"]
[ECO "D45"]
[WhiteElo "2084"]
[BlackElo "1454"]
[Annotator "NA RC"]
[PlyCount "99"]
[EventDate "2017.??.??"]
[EventCountry "ROU"]
[SourceTitle "playchess.com"]
[Source "ChessBase"]
[SourceQuality "1"]
[TimeControl "40/5400+30:900+30"]

{[%evp 32,98,12,32767,32767,32767,-85,-56,-5,-15,0,-421,0,0,131,81,301,317,294,0,25,32767,32767,32767,0,0,103,92,238,32767,32767,254,365,32767,47,58,50,-14,0,-3,0,-62,-52,-82,0,0,0,-5,0,0,0,-2,0,0,0,0,51,32,63,45,109,104,477,516,492,531,29995,29996,29999]} 1. d4 {[%emt 0:00:00]} d5 {[%emt 0:00:26]} 2. c4 {[%emt 0:00:00]} e6 {[%emt 0:00:10]} 3. Nf3 {[%emt 0:00:00]} Nf6 {[%emt 0:00:16]} 4. Nc3 {[%emt 0:00:03]} c6 {[%emt 0:00:19]} 5. e3 {[%emt 0:00:32]} Nbd7 {[%emt 0:00:26]} 6. Qc2 {[%emt 0:00:56]} Bd6 {[%emt 0:00:56]} 7. b3 {[%emt 0:00:28]} O-O {[%emt 0:01:14]} 8. Bb2 {[%emt 0:00:05]} Re8 {[%emt 0:01:11]} 9. Be2 {[%emt 0:03:47]} e5 {[%emt 0:04:35] D45: Semi-Slav: 5 e3} (9... dxc4 10. Bxc4 b5 11. Be2 Bb7 12. O-O a6 13. a4 e5 14. Ne4 Nxe4 15. Qxe4 Nf6 16. Qh4 e4 17. Ne5 {1-0 (49) Kovalenko,I (2596)-Sveshnikov,E (2534) Riga 2013}) 10. cxd5 {[%emt 0:03:28]} cxd5 {[%emt 0:06:33]} 11. dxe5 {[%emt 0:03:59]} Nxe5 {[%emt 0:00:12]} 12. Rd1 {[%emt 0:06:34]} Be6 $146 {[%emt 0:09:41]} ({Predecessor:} 12... b6 13. O-O Bb7 14. Nb5 Rc8 15. Qf5 Nxf3+ 16. Bxf3 Rc5 17. Nxd6 Qxd6 18. Ba3 Bc8 19. Bxc5 bxc5 {1-0 (56) Gusarchuk,A (2098)-Krupko,M Anapa 2007}) 13. O-O {[%emt 0:06:58]} a6 {[%emt 0:05:34]} 14. Nd4 {[%emt 0:32:26]} Rc8 {[%emt 0:02:50]} 15. Qb1 {[%emt 0:03:20]} Qd7 {[%emt 0:01:46]} 16. Kh1 {[%emt 0:20:03]} Bb8 {[%emt 0:10:24]} 17. Rc1 {[%emt 0:14:20]} Qd6 {[%emt 0:02:07]} 18. g3 {[%emt 0:00:21]} Bh3 {[%emt 0:09:12]} 19. Rfe1 {[%emt 0:01:24]} Neg4 {[%emt 0:13:54]} (19... Ba7 $17) 20. Kg1 {[%emt 0:00:38]} g6 {[%emt 0:07:18]} 21. Nf3 $2 {[%emt 0:00:33] [#]} (21. Bf3 $11) 21... Qe7 $2 {[%emt 0:01:10]} ({Black should play} 21... Nxf2 $1 $19 {[%mdl 512]} 22. Nxd5 (22. Kxf2 Ng4+) 22... Nxd5 23. Rxc8 Rxc8 24. Kxf2 {[#]} Nxe3 $1 {[%mdl 512]}) 22. Bf1 {[%emt 0:00:28]} Nxf2 {[%emt 0:18:44]} (22... Bxf1 $11 {hält das Gleichgewicht.} 23. Rxf1 Ba7) 23. Kxf2 {[%emt 0:00:19]} Ng4+ {[%emt 0:00:06]} (23... Bf5 $16 {is a better defense.} 24. Bd3 Bh3) 24. Kg1 {[%emt 0:00:03]} Bxf1 {[%emt 0:00:19]} 25. Rxf1 $2 {[%emt 0:00:46]} (25. Nxd5 $18 Qe6 26. Rxc8 Rxc8 27. Qd1) 25... Nxe3 {[%emt 0:00:40]} 26. Rf2 {[%emt 0:00:51]} Ba7 {[%emt 0:00:58]} 27. Kh1 {[%emt 0:00:04]} Qd6 {[%emt 0:01:42]} 28. Qd3 {[%emt 0:01:00]} Ng4 {[%emt 0:00:52]} (28... d4 $11 {bleibt in der Remisbreite.}) 29. Re2 {[%emt 0:00:04]} Nf2+ $2 {[%emt 0:00:38]} (29... Rxe2 $1 $14 30. Qxe2 Nf2+ 31. Kg2 Qd7) 30. Rxf2 {[%emt 0:00:03]} Bxf2 {[%emt 0:00:01]} 31. Rf1 {[%emt 0:00:25]} ({Worse is} 31. Nxd5 Rxc1+ 32. Bxc1 Rd8 $15) ({Weaker is} 31. Qxd5 Qxd5 32. Nxd5 Rxc1+ 33. Bxc1 Re2 $11) 31... Ba7 {[%emt 0:01:08]} (31... Re3 $142 32. Qd1 (32. Qxd5 Qxd5 33. Nxd5 Re2 $16) 32... Rexc3 33. Bxc3 (33. Rxf2 Qc5 $16) 33... Rxc3) 32. Qxd5 {[%emt 0:01:03]} Qxd5 {[%emt 0:00:37]} (32... Rcd8 $1 $11 33. Qxd6 Rxd6) 33. Nxd5 {[%emt 0:00:05]} Re2 {[%emt 0:00:23]} 34. Bd4 {[%emt 0:01:22]} (34. Be5 $14 Rcc2 35. Rd1) 34... Bxd4 {[%emt 0:00:33]} 35. Nxd4 {[%emt 0:00:05]} Re5 {[%emt 0:00:28]} 36. Nb6 {[%emt 0:00:54]} ({White should try} 36. Nb4 $11) 36... Rd8 {[%emt 0:00:19]} 37. Nf3 {[%emt 0:00:22]} Rf5 {[%emt 0:00:36]} (37... Re2 $17 38. a4 Rb2) 38. Kg2 {[%emt 0:00:29]} Rd3 {[%emt 0:00:34]} 39. Nc4 {[%emt 0:00:27]} b5 {[%emt 0:00:32]} 40. Nce5 {[%emt 0:00:00]} Rc3 {[%emt 0:00:28]} 41. g4 {[%emt 0:07:10]} Rf4 {[%emt 0:05:06]} 42. g5 {[%emt 0:01:04]} Re4 {[%emt 0:01:31]} 43. Rf2 {[%emt 0:00:46]} Rc7 {[%emt 0:03:21]} 44. Rd2 {[%emt 0:02:40]} Re7 {[%emt 0:01:37]} 45. Rd5 {[%emt 0:00:06]} Re2+ {[%emt 0:00:39]} ({Black should try} 45... Kg7 $14) 46. Kg3 {[%emt 0:00:15]} Rxa2 $2 {[%emt 0:00:38] [#]} (46... Re8 $16 {is more resistant.}) 47. Rd8+ $1 {[%emt 0:02:58]} Kg7 {[%emt 0:00:42] [#]} 48. Ng4 $1 {[%emt 0:00:32]} Re6 {[%emt 0:02:52]} 49. Nh6 {[%emt 0:00:33]} Re3 {[%emt 0:03:07]} 50. Rg8# {[%emt 0:00:07]} 1-0

[Event "Maria Albulet Memorial 2017"]
[Site "Braila"]
[Date "2017.10.08"]
[Round "2"]
[White "Rakhmangulova, Anastasiya"]
[Black "Makropoulou, Marina"]
[Result "1-0"]
[ECO "D03"]
[WhiteElo "2242"]
[BlackElo "2136"]
[Annotator "NA"]
[PlyCount "53"]
[EventDate "2017.??.??"]
[EventCountry "ROU"]
[SourceTitle "playchess.com"]
[Source "ChessBase"]
[SourceQuality "1"]
[TimeControl "40/5400+30:900+30"]

1. d4 {[%emt 0:00:00]} d5 {[%emt 0:00:18]} 2. Nf3 {[%emt 0:00:00]} Nf6 {[%emt 0:00:53]} 3. Bg5 {[%emt 0:00:00]} Ne4 {[%emt 0:01:17]} 4. Bh4 {[%emt 0:00:00]} c5 {[%emt 0:01:35]} 5. e3 {[%emt 0:00:04]} Qb6 {[%emt 0:01:57]} 6. Nc3 {[%emt 0:00:07]} Qa5 {[%emt 0:07:55]} 7. Bb5+ {[%emt 0:00:13]} Bd7 {[%emt 0:03:37]} (7... Nc6 $17) 8. Bxd7+ {[%emt 0:00:34]} Nxd7 {[%emt 0:00:10]} 9. O-O {[%emt 0:00:20]} Nxc3 $11 {[%emt 0:00:44]} 10. bxc3 {[%emt 0:02:05]} Qxc3 {[%emt 0:13:26]} 11. Rb1 {[%emt 0:03:45]} b6 {[%emt 0:01:45]} 12. Rb3 {[%emt 0:23:11]} Qa5 {[%emt 0:00:43]} 13. dxc5 {[%emt 0:08:35]} Qxc5 {[%emt 0:00:53]} 14. Rd3 {[%emt 0:03:37]} Nf6 {[%emt 0:22:37]} 15. Bxf6 {[%emt 0:11:37]} exf6 {[%emt 0:00:07]} 16. e4 {[%emt 0:17:01]} dxe4 {[%emt 0:04:33]} 17. Rd5 {[%emt 0:02:13]} Qc7 {[%emt 0:12:13]} 18. Qd4 {[%emt 0:00:55]} Be7 {[%emt 0:05:56]} 19. Qa4+ {[%emt 0:01:21]} Kf8 {[%emt 0:02:20]} 20. Rd7 {[%emt 0:06:42]} Qf4 {[%emt 0:06:46]} 21. Rfd1 {[%emt 0:04:05]} g6 {[%emt 0:01:04]} 22. Nd4 {[%emt 0:02:05]} Rc8 {[%emt 0:10:03]} 23. Qxa7 {[%emt 0:07:18]} Qe5 {[%emt 0:00:25]} 24. Re1 {[%emt 0:01:12]} f5 {[%emt 0:00:27]} 25. h4 {[%emt 0:03:59]} Qa5 {[%emt 0:00:04]} 26. Rxe7 {[%emt 0:00:46]} Qxe1+ {[%emt 0:00:26]} 27. Kh2 {[%emt 0:00:01]} 1-0

[Event "Maria Albulet Memorial 2017"]
[Site "Braila"]
[Date "2017.10.08"]
[Round "2"]
[White "Miladinovic, Lena"]
[Black "Djukic, Sandra"]
[Result "1/2-1/2"]
[ECO "D04"]
[WhiteElo "2138"]
[BlackElo "2084"]
[Annotator "NA"]
[PlyCount "30"]
[EventDate "2017.??.??"]
[EventCountry "ROU"]
[SourceTitle "playchess.com"]
[Source "ChessBase"]
[SourceQuality "1"]
[TimeControl "40/5400+30:900+30"]

1. d4 {[%emt 0:00:00]} Nf6 {[%emt 0:00:25]} 2. Nf3 {[%emt 0:00:00]} d5 {[%emt 0:00:14]} 3. e3 {[%emt 0:00:28]} c6 {[%emt 0:00:27]} 4. Bd3 {[%emt 0:00:57]} Bg4 {[%emt 0:00:22]} 5. O-O {[%emt 0:01:22]} e6 {[%emt 0:00:04]} 6. h3 {[%emt 0:00:07]} Bh5 {[%emt 0:00:08]} 7. b3 {[%emt 0:00:43]} Nbd7 {[%emt 0:00:07]} 8. Bb2 {[%emt 0:00:15]} Bd6 {[%emt 0:00:08]} 9. Nbd2 {[%emt 0:00:18]} O-O {[%emt 0:00:07]} 10. c4 {[%emt 0:00:49]} a5 {[%emt 0:03:51]} 11. Rc1 {[%emt 0:00:34]} Qe7 {[%emt 0:00:24]} 12. c5 {[%emt 0:01:29]} Bc7 {[%emt 0:00:16]} 13. Qc2 {[%emt 0:00:11]} e5 {[%emt 0:00:38]} 14. dxe5 {[%emt 0:00:10]} Nxe5 {[%emt 0:00:03]} 15. Nxe5 {[%emt 0:00:18]} Bxe5 {[%emt 0:00:04]} 1/2-1/2

[Event "Maria Albulet Memorial 2017"]
[Site "Braila"]
[Date "2017.10.08"]
[Round "2"]
[White "Aciu, Malina-Andreea"]
[Black "Nastase, Andreea-Cristina"]
[Result "0-1"]
[ECO "B22"]
[WhiteElo "2006"]
[BlackElo "1989"]
[Annotator "NA"]
[PlyCount "140"]
[EventDate "2017.??.??"]
[EventCountry "ROU"]
[SourceTitle "playchess.com"]
[Source "ChessBase"]
[SourceQuality "1"]
[TimeControl "40/5400+30:900+30"]

1. e4 {[%emt 0:00:00]} c5 {[%emt 0:00:05]} 2. c3 {[%emt 0:00:00]} Nf6 {[%emt 0:00:06]} 3. e5 {[%emt 0:00:00]} Nd5 {[%emt 0:00:03]} 4. d4 {[%emt 0:00:00]} cxd4 {[%emt 0:00:04]} 5. Nf3 {[%emt 0:00:00]} e6 {[%emt 0:00:04]} 6. cxd4 {[%emt 0:00:02]} b6 {[%emt 0:01:50]} 7. Nc3 {[%emt 0:00:05]} Bb7 {[%emt 0:00:05]} 8. Bd2 {[%emt 0:00:28] B22: Sicilian: 2 c3} (8. Bd3 Na6 9. Nxd5 Bxd5 10. Bxa6 b5 11. O-O Qb6 12. Bxb5 Qxb5 13. Ng5 h6 14. Nh3 Be7 15. Nf4 Bb7 16. Qg4 {½-½ (46) Savchenko,B (2608)-Popov,I (2627) Moscow 2014}) 8... d6 {[%emt 0:01:10]} 9. Bb5+ {[%emt 0:14:15]} Nd7 {[%emt 0:01:47]} 10. Ne4 {[%emt 0:04:59]} a6 {[%emt 0:04:50]} 11. Bg5 {[%emt 0:03:16]} f6 {[%emt 0:02:42]} 12. exf6 $146 {[%emt 0:06:32]} ({Predecessor:} 12. Bxd7+ Qxd7 13. exf6 h6 14. Bh4 Nf4 15. fxg7 Bxg7 {0-1 (58) Holzhaeuer,M (2330)-Costa,J (2425) Germany 1995}) 12... N5xf6 {[%emt 0:03:32]} 13. Bxf6 {[%emt 0:15:01]} gxf6 {[%emt 0:00:40]} 14. Bd3 {[%emt 0:00:20]} Rg8 {[%emt 0:13:22]} 15. O-O {[%emt 0:02:47]} f5 {[%emt 0:01:16]} 16. Ned2 {[%emt 0:05:18]} Qf6 {[%emt 0:07:25]} 17. Re1 {[%emt 0:05:08]} Bd5 {[%emt 0:14:55]} 18. Nc4 {[%emt 0:05:47]} f4 {[%emt 0:15:38]} 19. Rc1 {[%emt 0:12:41]} Qg7 {[%emt 0:01:52]} 20. Bf1 {[%emt 0:00:29]} Qg4 {[%emt 0:04:56]} 21. Ncd2 {[%emt 0:02:25]} Ke7 {[%emt 0:06:55]} 22. g3 {[%emt 0:02:41]} fxg3 {[%emt 0:00:22]} 23. hxg3 {[%emt 0:01:51]} Bh6 {[%emt 0:00:35]} 24. Bg2 {[%emt 0:00:47]} Raf8 {[%emt 0:04:12]} 25. Rc3 {[%emt 0:03:36]} Bxd2 {[%emt 0:01:04]} 26. Nxd2 {[%emt 0:00:47]} Qxd4 {[%emt 0:00:23]} 27. Qe2 {[%emt 0:00:28]} Nc5 {[%emt 0:03:08]} 28. Nb3 {[%emt 0:02:10]} Bxb3 {[%emt 0:03:53]} 29. Rxb3 {[%emt 0:00:35]} Rf6 {[%emt 0:01:07]} 30. Rxb6 {[%emt 0:04:06]} Rxg3 {[%emt 0:01:12]} 31. Rd1 {[%emt 0:03:28]} Rxf2 {[%emt 0:00:07]} 32. Qxf2 {[%emt 0:00:12]} Qxd1+ {[%emt 0:00:04]} 33. Kh2 {[%emt 0:00:05]} Rg5 {[%emt 0:01:24]} 34. Bf3 {[%emt 0:01:53]} Qc1 {[%emt 0:03:23]} 35. Rb4 {[%emt 0:00:35]} a5 {[%emt 0:01:05]} 36. Rh4 {[%emt 0:00:55]} Rg7 {[%emt 0:01:17]} 37. a3 {[%emt 0:00:52]} Qg5 {[%emt 0:00:45]} 38. b4 {[%emt 0:01:06]} axb4 {[%emt 0:00:49]} 39. axb4 {[%emt 0:00:34]} Qe5+ {[%emt 0:00:10]} 40. Kh1 {[%emt 0:00:00]} Qa1+ {[%emt 0:00:45]} 41. Kh2 {[%emt 0:00:00]} Nd3 {[%emt 0:00:24]} 42. Qe3 {[%emt 0:04:17]} Qb2+ {[%emt 0:00:22]} 43. Be2 {[%emt 0:01:22]} Qe5+ {[%emt 0:00:59]} ({Worse is} 43... Nxb4 44. Qa7+ Ke8 45. Qb8+ Ke7 46. Qb7+ Kd8 47. Qb8+ Ke7 48. Qb7+ Kd8 49. Qb8+ Ke7 $11) 44. Qxe5 {[%emt 0:00:10]} Nxe5 {[%emt 0:00:02]} 45. b5 {[%emt 0:00:22]} d5 {[%emt 0:03:19]} 46. b6 {[%emt 0:01:19]} Kd6 {[%emt 0:01:09]} 47. Rb4 {[%emt 0:00:21]} Rb7 {[%emt 0:00:16]} 48. Ba6 {[%emt 0:00:10]} Rb8 {[%emt 0:00:02]} 49. b7 {[%emt 0:01:17]} Nd7 {[%emt 0:00:11]} 50. Bd3 {[%emt 0:00:31]} h6 {[%emt 0:01:25]} 51. Rh4 {[%emt 0:01:54]} Rxb7 {[%emt 0:00:07]} 52. Rxh6 {[%emt 0:00:07]} Rb2+ {[%emt 0:00:01]} 53. Kg1 {[%emt 0:00:18]} Nc5 {[%emt 0:00:05]} 54. Bf1 {[%emt 0:00:14]} Rb1 {[%emt 0:00:39]} 55. Kf2 {[%emt 0:00:32]} Ne4+ {[%emt 0:00:19]} 56. Kg2 {[%emt 0:00:14]} Rb2+ {[%emt 0:00:47]} 57. Kg1 $1 $11 {[%emt 0:00:10] und Weiss ist OK.} Ng5 {[%emt 0:01:41]} (57... Ke5 58. Bh3) 58. Bg2 {[%emt 0:00:24]} Ne4 $2 {[%emt 0:02:26]} (58... Ke5 $19 59. Rh4 Nf7) 59. Bxe4 $2 {[%emt 0:01:09]} dxe4 {[%emt 0:00:03]} 60. Kf1 {[%emt 0:00:17]} Kd5 {[%emt 0:00:23]} 61. Rh8 {[%emt 0:00:06]} e3 {[%emt 0:00:24]} 62. Rd8+ {[%emt 0:00:15]} Ke4 {[%emt 0:00:07]} 63. Re8 {[%emt 0:00:05]} e5 {[%emt 0:00:28]} 64. Re7 {[%emt 0:00:13]} Rf2+ {[%emt 0:00:12]} 65. Ke1 {[%emt 0:00:07]} Ra2 {[%emt 0:01:02]} 66. Kd1 $2 {[%emt 0:00:27]} (66. Re8 $19) 66... e2+ {[%emt 0:00:11]} 67. Ke1 {[%emt 0:00:05]} Kf3 {[%emt 0:00:10]} 68. Rxe5 {[%emt 0:00:24]} (68. Rf7+ $11 Ke4 69. Rb7) 68... Ra1+ {[%emt 0:00:06]} 69. Kd2 {[%emt 0:00:04]} Rd1+ {[%emt 0:00:04]} 70. Kc2 {[%emt 0:00:30]} e1=Q {[%emt 0:00:05]} 0-1

[Event "Maria Albulet Memorial 2017"]
[Site "Braila"]
[Date "2017.10.08"]
[Round "2"]
[White "Didiliuc, Dariana-Gabriela"]
[Black "Petrenko, Svetlana"]
[Result "0-1"]
[ECO "A66"]
[WhiteElo "1779"]
[BlackElo "2140"]
[Annotator "ChessBase"]
[PlyCount "92"]
[EventDate "2017.??.??"]
[EventCountry "ROU"]
[SourceTitle "playchess.com"]
[Source "ChessBase"]
[SourceQuality "1"]
[TimeControl "40/5400+30:900+30"]

1. d4 {[%emt 0:00:00]} Nf6 {[%emt 0:00:33]} 2. c4 {[%emt 0:00:00]} c5 {[%emt 0:00:19]} 3. d5 {[%emt 0:00:20]} e6 {[%emt 0:00:18]} 4. Nc3 {[%emt 0:00:25]} exd5 {[%emt 0:00:17]} 5. cxd5 {[%emt 0:00:08]} d6 {[%emt 0:00:03]} 6. e4 {[%emt 0:00:13]} g6 {[%emt 0:00:27]} 7. f4 {[%emt 0:00:40]} Qe7 {[%emt 0:03:10]} 8. Bb5+ {[%emt 0:09:28]} Nfd7 {[%emt 0:04:40]} 9. Be2 {[%emt 0:05:38]} a6 {[%emt 0:02:56]} 10. a4 {[%emt 0:01:07]} Bg7 {[%emt 0:00:59]} 11. Nf3 {[%emt 0:14:09]} O-O {[%emt 0:17:23]} 12. O-O {[%emt 0:02:05]} f6 {[%emt 0:05:01]} 13. Nd2 {[%emt 0:11:54]} b6 {[%emt 0:08:29]} 14. Nc4 {[%emt 0:03:40]} Ra7 {[%emt 0:02:23]} 15. Qb3 {[%emt 0:03:33]} Rb7 {[%emt 0:00:22]} 16. e5 {[%emt 0:13:17]} dxe5 {[%emt 0:05:28]} 17. Bf3 {[%emt 0:11:34]} Kh8 {[%emt 0:01:50]} 18. d6 {[%emt 0:01:42]} Qe6 {[%emt 0:06:58]} 19. Bd5 {[%emt 0:05:11]} Qg4 {[%emt 0:02:09]} 20. Ne3 {[%emt 0:01:28]} Qh5 {[%emt 0:08:02]} 21. Bf3 {[%emt 0:00:31]} Qh6 {[%emt 0:01:40]} 22. Ng4 {[%emt 0:00:35]} Qh4 {[%emt 0:01:35]} 23. g3 {[%emt 0:01:06]} Qh3 {[%emt 0:01:04]} 24. Ne4 {[%emt 0:03:43]} Nc6 {[%emt 0:04:55]} 25. Bd1 {[%emt 0:05:03]} Nd4 {[%emt 0:03:19]} 26. Qd3 {[%emt 0:00:50]} exf4 {[%emt 0:05:55]} 27. Bxf4 {[%emt 0:00:38]} Ne6 {[%emt 0:11:14]} 28. Bd2 {[%emt 0:01:40]} f5 {[%emt 0:00:45]} 29. Nef2 {[%emt 0:00:17]} Qxf1+ {[%emt 0:01:28]} 30. Qxf1 {[%emt 0:00:39]} fxg4 {[%emt 0:00:02]} 31. Bxg4 {[%emt 0:00:50]} Ne5 {[%emt 0:00:14]} 32. Qd1 {[%emt 0:01:28]} Rbf7 {[%emt 0:01:13]} 33. Be1 {[%emt 0:01:19]} Nxg4 {[%emt 0:00:29]} 34. Nxg4 {[%emt 0:00:09]} Rf1+ {[%emt 0:00:47]} 35. Kg2 {[%emt 0:00:06]} Bb7+ {[%emt 0:00:09]} 36. Kh3 {[%emt 0:00:07]} Ng5+ {[%emt 0:00:17]} 37. Kh4 {[%emt 0:00:08]} Nf3+ {[%emt 0:00:13]} 38. Kh3 {[%emt 0:00:12]} Ng1+ {[%emt 0:01:07]} 39. Kh4 {[%emt 0:00:06]} Nf3+ {[%emt 0:00:35]} 40. Kh3 {[%emt 0:00:00]} g5 {[%emt 0:00:47]} 41. Bf2 {[%emt 0:03:37]} Rxd1 {[%emt 0:02:36]} 42. Rxd1 {[%emt 0:00:05]} h5 {[%emt 0:02:02]} 43. d7 {[%emt 0:00:54]} hxg4+ {[%emt 0:01:31]} 44. Kxg4 {[%emt 0:00:07]} Ne5+ {[%emt 0:05:51]} 45. Kxg5 {[%emt 0:01:31]} Rd8 {[%emt 0:00:26]} 46. Rd6 {[%emt 0:00:48]} Nf7+ {[%emt 0:00:22]} 0-1

[Event "Maria Albulet Memorial 2017"]
[Site "Braila"]
[Date "2017.10.08"]
[Round "2"]
[White "Patru, Alexandra-Ioana"]
[Black "Vorniceanu, Alina"]
[Result "0-1"]
[ECO "A46"]
[WhiteElo "1623"]
[BlackElo "1498"]
[Annotator "NA"]
[PlyCount "74"]
[EventDate "2017.??.??"]
[EventCountry "ROU"]
[SourceTitle "playchess.com"]
[Source "ChessBase"]
[SourceQuality "1"]
[TimeControl "40/5400+30:900+30"]

1. d4 {[%emt 0:00:00]} Nf6 {[%emt 0:04:25]} 2. Nf3 {[%emt 0:00:00]} c5 {[%emt 0:00:07]} 3. e3 {[%emt 0:00:00]} cxd4 {[%emt 0:00:24]} 4. exd4 {[%emt 0:00:01]} d5 {[%emt 0:00:36]} 5. Bd3 {[%emt 0:00:33]} Bg4 {[%emt 0:00:55]} 6. Nbd2 {[%emt 0:02:40]} e6 {[%emt 0:00:41]} 7. O-O {[%emt 0:03:56]} Bd6 {[%emt 0:02:23]} 8. c3 {[%emt 0:08:42]} O-O {[%emt 0:00:48]} 9. Qc2 {[%emt 0:01:38]} Nc6 {[%emt 0:02:59]} 10. Re1 {[%emt 0:07:35]} Rc8 {[%emt 0:00:32]} 11. a3 {[%emt 0:01:37]} a6 {[%emt 0:09:47]} 12. b3 {[%emt 0:12:17]} Qc7 {[%emt 0:25:35]} 13. h3 {[%emt 0:24:08]} Bf5 {[%emt 0:01:13]} 14. Bxf5 {[%emt 0:02:25]} exf5 {[%emt 0:00:08]} 15. Bb2 {[%emt 0:01:53]} Ne4 {[%emt 0:01:06]} 16. c4 {[%emt 0:02:45]} Ne7 {[%emt 0:12:08]} 17. Qd3 {[%emt 0:08:47]} dxc4 {[%emt 0:14:02]} 18. bxc4 {[%emt 0:02:16]} Nxd2 {[%emt 0:00:43]} 19. Nxd2 {[%emt 0:00:15]} Rfe8 {[%emt 0:02:51]} 20. d5 {[%emt 0:01:32]} b5 {[%emt 0:04:22]} 21. Rac1 {[%emt 0:04:16]} Qb7 {[%emt 0:01:32]} 22. Qd4 {[%emt 0:05:59]} f6 {[%emt 0:00:29]} 23. c5 {[%emt 0:03:26]} Be5 {[%emt 0:01:12]} 24. c6 {[%emt 0:02:08]} Qc7 {[%emt 0:03:40]} 25. Rxe5 {[%emt 0:01:41]} fxe5 {[%emt 0:01:19]} 26. Qc5 {[%emt 0:01:02]} Red8 {[%emt 0:01:06]} 27. Re1 {[%emt 0:00:52]} Rxd5 {[%emt 0:01:57]} 28. Qe3 {[%emt 0:00:05]} Nxc6 {[%emt 0:02:05]} 29. Nf3 {[%emt 0:00:22]} Re8 {[%emt 0:00:46]} 30. Qg5 {[%emt 0:00:21]} e4 {[%emt 0:01:13]} 31. Nh4 {[%emt 0:00:19]} Qe7 {[%emt 0:01:29]} 32. Qg3 {[%emt 0:00:25]} Rf8 {[%emt 0:01:13]} 33. Kh1 {[%emt 0:01:03]} Rd3 {[%emt 0:01:05]} 34. f3 {[%emt 0:00:36]} Na5 {[%emt 0:01:44]} 35. Nxf5 {[%emt 0:00:58]} Rxf5 {[%emt 0:00:17]} 36. Rxe4 {[%emt 0:00:09]} Qd7 {[%emt 0:01:05]} 37. Re8+ {[%emt 0:01:02]} Kf7 {[%emt 0:00:26]} 0-1

[Event "Maria Albulet Memorial 2017"]
[Site "Braila"]
[Date "2017.10.08"]
[Round "2"]
[White "Uzuneanu, Gabriela"]
[Black "Popa, Catalina-Elena"]
[Result "1-0"]
[ECO "B21"]
[WhiteElo "1564"]
[BlackElo "1731"]
[Annotator "NA"]
[PlyCount "79"]
[EventDate "2017.??.??"]
[EventCountry "ROU"]
[SourceTitle "playchess.com"]
[Source "ChessBase"]
[SourceQuality "1"]
[TimeControl "40/5400+30:900+30"]

1. e4 {[%emt 0:00:00]} c5 {[%emt 0:00:03]} 2. f4 {[%emt 0:00:00]} Nc6 {[%emt 0:00:05]} 3. Nf3 {[%emt 0:00:00]} g6 {[%emt 0:00:09]} 4. g3 {[%emt 0:00:00]} Bg7 {[%emt 0:00:07]} 5. Bg2 {[%emt 0:00:00]} d6 {[%emt 0:00:07]} 6. d3 {[%emt 0:00:11]} e6 {[%emt 0:00:08]} 7. Nc3 {[%emt 0:01:20]} Nge7 {[%emt 0:00:06]} 8. Bd2 {[%emt 0:00:20]} O-O {[%emt 0:00:24]} 9. O-O {[%emt 0:02:24]} b6 {[%emt 0:00:23]} 10. Rb1 {[%emt 0:08:53]} Nd4 {[%emt 0:01:41]} 11. Ne2 {[%emt 0:07:47]} Nxf3+ {[%emt 0:01:25]} 12. Bxf3 {[%emt 0:00:06]} Bb7 {[%emt 0:00:12]} 13. Bc3 {[%emt 0:06:12]} f5 {[%emt 0:14:32]} 14. Bxg7 {[%emt 0:05:36]} Kxg7 {[%emt 0:00:02]} 15. Nc3 {[%emt 0:03:37]} Qd7 {[%emt 0:04:18]} 16. d4 {[%emt 0:21:08]} fxe4 {[%emt 0:04:36]} 17. Nxe4 {[%emt 0:00:22]} d5 {[%emt 0:00:16]} 18. dxc5 {[%emt 0:01:02]} Qc7 {[%emt 0:16:40]} 19. cxb6 {[%emt 0:17:32]} Qxb6+ {[%emt 0:00:07]} 20. Nf2 {[%emt 0:00:02]} Nf5 {[%emt 0:00:57]} 21. Re1 {[%emt 0:03:02]} Kf7 {[%emt 0:06:44]} 22. Qd2 {[%emt 0:07:42]} Rac8 {[%emt 0:01:49]} 23. c3 {[%emt 0:01:20]} Rc7 {[%emt 0:07:29]} 24. Bh1 {[%emt 0:06:53]} Rfc8 {[%emt 0:05:16]} 25. g4 {[%emt 0:01:07]} Ng7 {[%emt 0:12:57]} 26. Qe3 {[%emt 0:02:22]} Qxe3 {[%emt 0:00:56]} 27. Rxe3 {[%emt 0:00:04]} d4 {[%emt 0:00:51]} 28. cxd4 {[%emt 0:00:40]} Rc1+ {[%emt 0:00:04]} 29. Re1 {[%emt 0:00:02]} Rxe1+ {[%emt 0:00:46]} 30. Rxe1 {[%emt 0:00:06]} Bxh1 {[%emt 0:00:06]} 31. Kxh1 {[%emt 0:00:19]} Rc2 {[%emt 0:00:10]} 32. Nd3 {[%emt 0:00:42]} Rd2 {[%emt 0:00:42]} 33. Re3 {[%emt 0:01:52]} h5 {[%emt 0:00:23]} 34. Ne5+ {[%emt 0:00:18]} Kf6 {[%emt 0:00:19]} 35. g5+ {[%emt 0:00:22]} Kf5 {[%emt 0:01:10]} 36. Nd3 {[%emt 0:00:17]} Kg4 {[%emt 0:01:08]} 37. h3+ {[%emt 0:00:07]} Kh4 {[%emt 0:00:54]} 38. Ne5 {[%emt 0:00:13]} Rd1+ {[%emt 0:00:25]} 39. Kg2 {[%emt 0:00:03]} Rd2+ {[%emt 0:00:28]} 40. Kf1 {[%emt 0:00:00]} 1-0